bitfinex/quotes_SOLUSD_20250607
["timestamp","ask_amount","ask_price","bid_price","bid_amount"]
[1749268079971,148.6,149.58,149.57,51.52]
[1749268080270,9.65501061,149.58,149.57,51.52]
[1749268080774,18.933972,149.57,149.55,40.94]
[1749268081065,9.65501061,149.57,149.55,40.94]
[1749268081452,28.30465947,149.58,149.55,40.94]
[1749268082060,9.65501061,149.58,149.55,47.62669517]
[1749268082556,4.98340959,149.61,149.57,9.65501061]
[1749268082763,9.65501061,149.62,149.58,50.59501061]
[1749268083064,178.46925947,149.63,149.59,16.33994944]
[1749268084862,6.68141663,149.67,149.59,16.33994944]
[1749268084863,150.1646,149.67,149.62,9.65501061]
[1749268085045,14.65135369,149.66,149.63,47.64315177]
[1749268085252,9.65501061,149.65,149.63,47.64315177]
[1749268085859,9.65501061,149.64,149.63,40.96]
[1749268086351,18.64964886,149.65,149.63,40.96]
[1749268086716,14.65135369,149.66,149.63,40.96]
[1749268086974,4.99634308,149.66,149.63,47.64279819]
[1749268087281,14.65135369,149.66,149.63,47.64279819]
[1749268087450,9.65501061,149.66,149.63,47.64279819]
[1749268087953,168.81424886,149.67,149.63,47.64279819]
[1749268088145,9.65501061,149.66,149.63,47.64279819]
[1749268088563,150.1646,149.67,149.63,57.2978088]
[1749268088772,159.81961061,149.67,149.63,67.8978088]
[1749268089155,150.1646,149.67,149.63,67.8978088]
[1749268089355,159.81961061,149.67,149.63,67.8978088]
[1749268091258,148.6,149.67,149.64,9.65501061]
[1749268092054,148.6,149.67,149.65,9.65501061]
[1749268092280,148.6,149.67,149.66,40.96]
[1749268094584,148.6,149.67,149.66,47.6418121]
[1749268094762,13.23679729,149.69,149.66,57.29682271]
[1749268096962,0.4870041,149.71,149.68,9.65501061]
[1749268097170,0.4870041,149.71,149.69,50.59501061]
[1749268097694,0.4870041,149.71,149.69,40.94]
[1749268097984,0.4870041,149.71,149.69,50.59501061]
[1749268098484,0.4870041,149.71,149.69,40.94]
[1749268098856,0.4870041,149.71,149.7,9.65501061]
[1749268100467,0.4870041,149.71,149.7,16.33503733]
[1749268103263,0.4870041,149.71,149.68,10.6]
[1749268103463,0.4870041,149.71,149.69,40.98]
[1749268103661,10.14201471,149.71,149.69,40.98]
[1749268103857,0.4870041,149.71,149.69,40.98]
[1749268106484,0.4870041,149.71,149.69,47.66025087]
[1749268107916,0.4870041,149.71,149.69,57.31526148]
[1749268109713,0.4870041,149.71,149.69,47.66025087]
[1749268111416,0.4870041,149.71,149.69,6.68025087]
[1749268111596,0.4870041,149.71,149.7,47.64002672]
[1749268112607,0.4870041,149.71,149.7,57.29503733]
[1749268114918,0.4870041,149.71,149.7,47.64002672]
[1749268115092,0.4870041,149.71,149.7,40.96]
[1749268115516,0.4870041,149.71,149.7,40.98]
[1749268115907,10.14201471,149.71,149.68,10.6]
[1749268116109,10.14201471,149.71,149.7,40.98]
[1749268117301,10.14201471,149.71,149.68,10.6]
[1749268117501,9.65501061,149.69,149.68,10.6]
[1749268120318,0.77132724,149.71,149.68,10.6]
[1749268120492,9.65501061,149.69,149.68,10.6]
[1749268121512,9.65501061,149.69,149.68,17.28091929]
[1749268121815,9.65501061,149.69,149.68,10.6]
[1749268122597,9.65501061,149.7,149.68,10.6]
[1749268122917,0.77132724,149.71,149.68,10.6]
[1749268123218,10.14201471,149.71,149.68,10.6]
[1749268123417,0.4870041,149.71,149.68,26.93589753]
[1749268128119,0.4870041,149.71,149.69,9.65501061]
[1749268128350,0.4870041,149.71,149.7,9.65501061]
[1749268128509,0.4870041,149.71,149.69,9.65501061]
[1749268129627,0.4870041,149.71,149.69,16.33529574]
[1749268130427,0.4870041,149.71,149.69,6.68028513]
[1749268130799,0.4870041,149.71,149.69,16.33529574]
[1749268131006,0.4870041,149.71,149.69,6.68028513]
[1749268131215,0.4870041,149.71,149.69,16.33529574]
[1749268132120,0.4870041,149.71,149.7,9.65501061]
[1749268134245,0.4870041,149.71,149.7,16.33503733]
[1749268141245,0.4870041,149.71,149.7,40.9]
[1749268141422,10.14201471,149.71,149.68,10.6]
[1749268141623,10.14201471,149.71,149.69,40.9]
[1749268142444,10.14201471,149.71,149.68,10.6]
[1749268142634,10.14201471,149.71,149.69,40.9]
[1749268143853,0.4870041,149.71,149.69,47.58045004]
[1749268144964,0.4870041,149.71,149.69,57.23546065]
[1749268152070,0.4870041,149.71,149.7,10.6]
[1749268154066,0.4870041,149.71,149.7,17.28002672]
[1749268154373,0.4870041,149.71,149.7,26.93503733]
[1749268159380,0.4870041,149.71,149.7,67.79503733]
[1749268168187,0.4870041,149.71,149.7,93.79503733]
[1749268168983,0.4870041,149.71,149.7,67.79503733]
[1749268169187,2.73291378,149.8,149.73,26.0]
[1749268169485,2.73291378,149.8,149.79,9.65501061]
[1749268169787,2.73291378,149.8,149.79,61.13501061]
[1749268171057,2.73291378,149.8,149.79,51.48]
[1749268171270,2.73291378,149.8,149.79,61.13501061]
[1749268171566,2.73291378,149.8,149.79,67.81102369]
[1749268177686,2.73291378,149.8,149.79,58.15601308]
[1749268177996,2.73291378,149.8,149.79,67.81102369]
[1749268178177,2.73291378,149.8,149.74,72.01328065]
[1749268178178,1.5653,149.79,149.74,38.48]
[1749268178492,150.1653,149.79,149.76,10.64]
[1749268178691,9.65501061,149.77,149.76,10.64]
[1749268179188,28.30465947,149.77,149.72,10.64]
[1749268179385,9.65501061,149.74,149.72,10.64]
[1749268179579,9.65501061,149.74,149.73,40.96]
[1749268179768,150.1653,149.79,149.73,40.96]
[1749268179970,159.82031061,149.79,149.75,9.65501061]
[1749268180276,150.1653,149.79,149.75,9.65501061]
[1749268180599,150.1653,149.79,149.76,9.65501061]
[1749268180892,150.1653,149.79,149.77,40.98]
[1749268181603,150.1653,149.79,149.77,47.65687198]
[1749268182484,159.82031061,149.79,149.77,40.98]
[1749268183996,150.1653,149.79,149.77,40.98]
[1749268184496,159.82031061,149.79,149.77,40.98]
[1749268185598,150.1653,149.79,149.77,40.98]
[1749268185892,159.82031061,149.79,149.77,40.98]
[1749268186395,150.1653,149.79,149.77,40.98]
[1749268187987,150.1653,149.79,149.77,51.62]
[1749268189879,159.82031061,149.79,149.77,51.62]
[1749268190787,9.65501061,149.78,149.77,51.62]
[1749268192986,159.82031061,149.79,149.77,51.62]
[1749268195704,9.65501061,149.78,149.77,51.62]
[1749268197005,159.82031061,149.79,149.77,51.62]
[1749268197674,150.1653,149.79,149.77,51.62]
[1749268197905,159.82031061,149.79,149.77,51.62]
[1749268203606,159.82031061,149.79,149.72,10.58]
[1749268203607,18.64964886,149.77,149.72,10.58]
[1749268203810,9.65501061,149.74,149.73,40.88]
[1749268204109,9.65501061,149.74,149.73,40.9]
[1749268205887,155.27759097,149.76,149.73,40.9]
[1749268206090,9.65501061,149.74,149.73,40.9]
[1749268208210,148.6,149.73,149.72,10.58]
[1749268208423,158.25501061,149.73,149.72,51.46]
[1749268209022,158.25501061,149.73,149.72,10.58]
[1749268209218,158.25501061,149.73,149.72,51.48]
[1749268209429,148.6,149.73,149.72,51.48]
[1749268213423,148.6,149.78,149.72,67.81414499]
[1749268213602,9.65501061,149.77,149.73,9.65501061]
[1749268213810,9.65501061,149.77,149.74,40.88]
[1749268214119,158.25501061,149.78,149.74,50.53501061]
[1749268214498,9.65501061,149.77,149.74,40.88]
[1749268216840,148.6,149.78,149.74,40.88]
[1749268217011,9.65501061,149.77,149.74,40.88]
[1749268217908,9.65501061,149.76,149.74,40.88]
[1749268218136,9.65501061,149.75,149.74,40.88]
[1749268221255,9.65501061,149.75,149.74,40.86]
[1749268222040,9.65501061,149.76,149.74,40.86]
[1749268222521,9.65501061,149.75,149.74,40.86]
[1749268222764,9.65501061,149.76,149.74,40.86]
[1749268223954,6.67693006,149.77,149.74,40.86]
[1749268223955,9.65501061,149.77,149.74,40.86]
[1749268228141,158.25501061,149.78,149.74,47.53823527]
[1749268228533,148.6,149.78,149.76,9.65501061]
[1749268228840,148.6,149.78,149.77,51.44]
[1749268230334,148.6,149.78,149.77,58.11690458]
[1749268230748,148.6,149.78,149.77,67.77191519]
[1749268230937,2.73291378,149.8,149.77,67.77191519]
[1749268232554,2.73291378,149.8,149.78,9.65501061]
[1749268232855,2.73291378,149.8,149.79,40.86]
[1749268237938,2.73291378,149.8,149.79,57.19102369]
[1749268242971,2.73291378,149.8,149.79,40.86]
[1749268245757,2.73291378,149.8,149.79,57.19102369]
[1749268247470,2.73291378,149.8,149.79,47.53601308]
[1749268247861,2.73291378,149.8,149.79,57.19102369]
[1749268249179,2.73291378,149.8,149.79,57.17102369]
[1749268254199,2.73291378,149.8,149.77,17.2565198]
[1749268254491,12.38792439,149.8,149.78,40.84]
[1749268254671,2.73291378,149.8,149.78,40.84]
[1749268257995,2.73291378,149.8,149.78,47.5164242]
[1749268258680,2.73291378,149.8,149.78,57.17143481]
[1749268259404,2.73291378,149.8,149.79,9.65501061]
[1749268261481,2.73291378,149.8,149.79,16.33102369]
[1749268272589,2.73291378,149.8,149.79,57.15102369]
[1749268279895,2.73291378,149.8,149.79,83.15102369]
[1749268280102,2.73291378,149.8,149.79,92.8060343]
[1749268280605,2.73291378,149.8,149.79,83.15102369]
[1749268288230,2.73291378,149.8,149.79,93.71102369]
[1749268303447,2.73291378,149.8,149.79,43.23601308]
[1749268303650,2.73291378,149.8,149.79,64.20432967]
[1749268303856,2.73291378,149.8,149.79,58.05601308]
[1749268304353,2.73291378,149.8,149.79,64.20432967]
[1749268305433,2.73291378,149.8,149.79,82.85397853]
[1749268306054,2.73291378,149.8,149.79,108.85397853]
[1749268315255,2.73291378,149.8,149.79,90.20432967]
[1749268322767,2.73291378,149.8,149.79,108.85397853]
[1749268323873,8.33333333,149.84,149.82,26.0]
[1749268324037,8.33333333,149.84,149.83,46.96831659]
[1749268324442,8.33333333,149.84,149.83,40.82]
[1749268325346,8.33333333,149.84,149.83,46.96831659]
[1749268326547,8.33333333,149.84,149.83,57.52831659]
[1749268327056,8.33333333,149.84,149.83,64.20254738]
[1749268334548,8.33333333,149.84,149.83,58.05423079]
[1749268334750,8.33333333,149.84,149.83,64.20254738]
[1749268342008,8.33333333,149.84,149.83,82.85219624]
[1749268342277,8.33333333,149.84,149.83,82.99435781]
[1749268343060,8.33333333,149.84,149.83,82.85219624]
[1749268344784,8.33333333,149.84,149.83,64.20254738]
[1749268349865,8.33333333,149.84,149.83,23.38254738]
[1749268350071,8.33333333,149.84,149.83,64.18254738]
[1749268369908,8.33333333,149.84,149.83,58.03423079]
[1749268370100,8.33333333,149.84,149.83,64.18254738]
[1749268371806,8.33333333,149.84,149.83,17.23423079]
[1749268371999,8.33333333,149.84,149.83,58.03423079]
[1749268372202,8.33333333,149.84,149.83,64.18254738]
[1749268377209,8.33333333,149.84,149.83,51.36]
[1749268379916,7.7784,149.83,149.81,51.26332707]
[1749268380116,7.7784,149.83,149.82,51.36]
[1749268380897,7.7784,149.83,149.82,10.56]
[1749268381098,6.1758,149.81,149.76,10.56]
[1749268381298,6.14831659,149.77,149.76,10.56]
[1749268381610,6.14831659,149.77,149.76,51.36]
[1749268381611,7.68931659,149.77,149.76,51.36]
[1749268381930,13.86511659,149.77,149.76,51.36]
[1749268382302,13.86511659,149.77,149.76,10.56]
[1749268382525,13.86511659,149.77,149.76,51.36]
[1749268383604,20.54202117,149.77,149.74,10.56]
[1749268383807,6.14831659,149.75,149.74,10.56]
[1749268384715,6.14831659,149.75,149.74,51.36]
[1749268385130,1.541,149.74,149.7,10.54]
[1749268385328,9.62324013,149.71,149.7,10.54]
[1749268385733,9.62324013,149.71,149.7,51.34]
[1749268385734,16.23094013,149.71,149.7,51.34]
[1749268386031,17.73694013,149.71,149.7,51.34]
[1749268386207,8.1137,149.71,149.7,51.34]
[1749268386612,1.506,149.71,149.7,67.64326685]
[1749268389035,1.506,149.78,149.7,67.64326685]
[1749268389340,1.506,149.78,149.74,9.62324013]
[1749268389515,1.506,149.78,149.75,51.38]
[1749268390511,1.506,149.78,149.75,58.05761786]
[1749268390822,11.12924013,149.78,149.75,51.38]
[1749268391218,1.506,149.78,149.75,67.68089047]
[1749268393627,11.12924013,149.78,149.75,58.05765034]
[1749268393831,9.62324013,149.77,149.75,51.38]
[1749268394203,1.506,149.78,149.75,51.38]
[1749268394204,1.506,149.78,149.75,61.00324013]
[1749268394918,1.506,149.78,149.75,67.68100597]
[1749268395318,11.12924013,149.78,149.75,58.05776584]
[1749268395931,11.12924013,149.78,149.75,51.38]
[1749268396928,11.12924013,149.78,149.75,58.05778104]
[1749268397512,11.12924013,149.78,149.75,51.38]
[1749268399334,1.506,149.78,149.75,51.38]
[1749268399526,1.506,149.78,149.75,67.68101169]
[1749268401015,1.506,149.78,149.75,58.05777156]
[1749268401016,11.12924013,149.78,149.75,58.05777156]
[1749268402536,9.62324013,149.81,149.77,9.62324013]
[1749268402714,9.62324013,149.82,149.78,40.82]
[1749268403137,9.62324013,149.81,149.78,40.82]
[1749268404647,9.62324013,149.82,149.78,47.49640328]
[1749268405321,150.2063,149.83,149.78,47.49640328]
[1749268406541,150.2063,149.83,149.78,64.18755029]
[1749268407130,8.33333333,149.84,149.79,44.64964886]
[1749268407336,8.33333333,149.84,149.8,10.56]
[1749268407516,8.33333333,149.84,149.81,40.82]
[1749268407944,8.33333333,149.84,149.82,6.67467627]
[1749268412241,8.33333333,149.84,149.81,47.4949685]
[1749268416533,8.33333333,149.84,149.81,64.18277305]
[1749268422344,8.33333333,149.84,149.81,47.4949685]
[1749268422948,8.33333333,149.84,149.82,40.8]
[1749268423458,8.33333333,149.84,149.8,17.23540812]
[1749268423760,8.33333333,149.84,149.83,40.8]
[1749268424867,8.33333333,149.84,149.8,10.56]
[1749268425057,8.33333333,149.84,149.83,40.8]
[1749268433971,1.5994,149.83,149.8,10.56]
[1749268434173,1.5994,149.83,149.81,40.8]
[1749268438376,1.5994,149.83,149.82,40.8]
[1749268440776,14.48033079,149.83,149.82,40.8]
[1749268440966,14.48033079,149.83,149.8,10.56]
[1749268441162,19.46086678,149.83,149.81,40.8]
[1749268441365,14.48033079,149.83,149.81,40.8]
[1749268442173,148.74216157,149.82,149.76,10.54]
[1749268442372,148.6,149.81,149.76,10.54]
[1749268442566,148.6,149.81,149.77,40.8]
[1749268442763,0.14216157,149.8,149.76,10.54]
[1749268442978,0.14216157,149.8,149.77,40.8]
[1749268443167,148.6,149.79,149.77,40.8]
[1749268443477,148.6,149.78,149.77,40.8]
[1749268448389,148.6,149.78,149.76,10.54]
[1749268448898,173.92631729,149.78,149.77,40.8]
[1749268449079,174.06847886,149.78,149.77,40.8]
[1749268449267,0.14216157,149.77,149.72,10.54]
[1749268449459,1.80136157,149.77,149.73,40.8]
[1749268449785,8.47855164,149.77,149.74,40.8]
[1749268451454,8.47855164,149.77,149.72,10.54]
[1749268451655,8.47855164,149.77,149.73,40.8]
[1749268453867,148.6,149.76,149.73,40.8]
[1749268457188,148.6,149.76,149.73,47.47854976]
[1749268457791,148.6,149.76,149.73,40.8]
[1749268458290,148.6,149.76,149.73,47.4786451]
[1749268476801,148.6,149.76,149.73,40.8]
[1749268477273,148.6,149.76,149.72,17.21902669]
[1749268477274,150.1179,149.76,149.74,40.8]
[1749268477473,150.1179,149.76,149.75,40.8]
[1749268488107,148.6,149.76,149.75,40.8]
[1749268497104,148.6,149.76,149.75,47.47779632]
[1749268501824,148.6,149.76,149.75,40.8]
[1749268504421,148.6,149.76,149.75,47.47779632]
[1749268520644,148.6,149.76,149.75,58.01779632]
[1749268524965,148.6,149.76,149.75,51.34]
[1749268525268,6.67824228,149.74,149.71,10.54]
[1749268525470,148.6,149.73,149.71,10.54]
[1749268525770,148.6,149.73,149.72,40.78]
[1749268527374,148.6,149.73,149.71,10.54]
[1749268527375,148.6,149.72,149.71,10.54]
[1749268527668,173.85214886,149.72,149.71,40.8]
[1749268528076,1.5146,149.7,149.67,10.54]
[1749268528371,148.6,149.69,149.68,40.8]
[1749268528771,148.88432314,149.69,149.68,40.8]
[1749268530166,155.56479611,149.69,149.68,40.8]
[1749268530470,6.96479611,149.69,149.68,40.8]
[1749268532777,0.28432314,149.69,149.68,40.8]
[1749268534759,32.96479611,149.69,149.68,40.8]
[1749268537674,32.96479611,149.69,149.67,40.8]
[1749268538773,148.6,149.68,149.66,40.8]
[1749268539476,148.6,149.68,149.65,40.8]
[1749268539682,155.28100455,149.68,149.65,40.8]
[1749268542775,148.6,149.67,149.65,40.8]
[1749268542958,148.6,149.66,149.65,40.8]
[1749268543669,148.6,149.66,149.65,47.4822586]
[1749268546883,148.6,149.7,149.65,64.1879051]
[1749268548470,150.2477,149.74,149.66,18.64964886]
[1749268548673,148.6,149.74,149.67,41.5029]
[1749268548874,148.6,149.74,149.68,36.54]
[1749268549088,18.27578828,149.76,149.69,66.10184886]
[1749268549261,18.27578828,149.76,149.69,47.4522]
[1749268549461,18.27578828,149.76,149.69,40.8]
[1749268549985,0.28432314,149.75,149.69,40.8]
[1749268550183,148.6,149.74,149.69,40.8]
[1749268550574,148.6,149.74,149.69,47.48033493]
[1749268554386,148.6,149.73,149.69,47.48033493]
[1749268564771,148.6,149.73,149.67,6.68100692]
[1749268565008,148.88432314,149.72,149.68,10.54]
[1749268565301,148.88432314,149.72,149.69,40.78]
[1749268565974,148.88432314,149.71,149.7,40.78]
[1749268569393,0.28432314,149.71,149.7,40.78]
[1749268573010,6.96390366,149.71,149.7,40.78]
[1749268573608,25.61355252,149.71,149.7,40.78]
[1749268573825,51.61355252,149.71,149.7,40.78]
[1749268574314,44.64964886,149.71,149.69,40.78]
[1749268574684,44.64964886,149.71,149.67,10.54]
[1749268574882,51.32934132,149.71,149.68,40.78]
[1749268575305,148.6,149.7,149.68,40.78]
[1749268575501,148.6,149.69,149.68,40.78]
[1749268577516,148.6,149.69,149.67,10.54]
[1749268577816,148.6,149.69,149.68,40.78]
[1749268579325,148.6,149.69,149.67,10.54]
[1749268579622,0.28432314,149.68,149.67,10.54]
[1749268579831,0.28432314,149.68,149.67,51.32]
[1749268581294,0.28432314,149.68,149.64,6.6825882]
[1749268581505,0.28432314,149.68,149.65,40.78]
[1749268581813,6.96524996,149.68,149.65,40.78]
[1749268581993,1.5865,149.67,149.63,10.52]
[1749268582320,1.5865,149.67,149.64,40.78]
[1749268582511,1.5865,149.67,149.65,40.78]
[1749268583398,8.26800291,149.67,149.65,40.78]
[1749268584217,8.26800291,149.67,149.63,10.52]
[1749268584418,8.26800291,149.67,149.64,40.78]
[1749268584917,18.64964886,149.66,149.64,40.78]
[1749268585120,0.14216157,149.65,149.63,10.52]
[1749268585319,0.14216157,149.63,149.62,40.78]
[1749268585707,0.28432314,149.63,149.59,10.52]
[1749268586032,0.28432314,149.63,149.6,40.78]
[1749268586530,0.28432314,149.63,149.59,10.52]
[1749268586709,0.28432314,149.63,149.61,40.78]
[1749268590104,148.6,149.62,149.61,40.78]
[1749268595944,0.28432314,149.63,149.61,40.78]
[1749268601911,26.0,149.64,149.61,47.46393233]
[1749268603835,18.64964886,149.66,149.61,47.46393233]
[1749268604639,0.14216157,149.65,149.61,47.46393233]
[1749268607137,0.14216157,149.65,149.61,40.78]
[1749268607439,0.28432314,149.65,149.61,47.46390381]
[1749268613313,0.28432314,149.65,149.61,57.98390381]
[1749268621662,32.55993732,149.67,149.61,57.98390381]
[1749268621827,148.6,149.66,149.61,57.98390381]
[1749268622027,148.6,149.66,149.61,74.69401677]
[1749268622942,148.6,149.66,149.61,75.39691677]
[1749268623146,14.50069268,149.73,149.64,26.0]
[1749268623333,4.99637254,149.72,149.66,26.0]
[1749268623656,14.50069268,149.73,149.67,11.2229]
[1749268623869,14.50069268,149.73,149.67,10.52]
[1749268623870,19.49410908,149.73,149.67,10.52]
[1749268624037,14.50069268,149.73,149.68,40.78]
[1749268624831,21.17942418,149.73,149.68,40.78]
[1749268625138,0.14216157,149.71,149.69,40.78]
[1749268628443,148.6,149.7,149.69,40.78]
[1749268629153,6.96402536,149.71,149.69,40.78]
[1749268629154,6.67970222,149.71,149.69,40.78]
[1749268630363,1.5423,149.72,149.69,40.78]
[1749268631273,14.50069268,149.73,149.69,40.78]
[1749268631443,21.17954057,149.73,149.69,40.78]
[1749268632440,14.50069268,149.73,149.69,47.46045142]
[1749268634964,14.50069268,149.73,149.69,64.16163386]
[1749268635462,14.50069268,149.73,149.69,47.46045142]
[1749268637771,14.50069268,149.73,149.69,96.19243386]
[1749268638275,148.6,149.78,149.72,26.0]
[1749268638481,148.6,149.81,149.73,51.28]
[1749268638691,148.6,149.8,149.74,6.67824228]
[1749268639256,0.28432314,149.79,149.73,57.9586219]
[1749268639451,18.933972,149.79,149.73,51.28]
[1749268640883,6.6764588,149.78,149.73,51.28]
[1749268641062,148.6,149.77,149.73,51.28]
[1749268641975,0.14216157,149.76,149.73,51.28]
[1749268642160,148.74216157,149.76,149.73,51.28]
[1749268642359,148.74216157,149.76,149.73,10.52]
[1749268642360,0.14216157,149.74,149.73,10.52]
[1749268642554,0.14216157,149.74,149.73,51.28]
[1749268644073,0.14216157,149.74,149.73,10.52]
[1749268644260,0.28432314,149.74,149.73,51.28]
[1749268645279,0.28432314,149.74,149.73,40.76]
[1749268648483,6.96256542,149.74,149.73,40.76]
[1749268649969,0.28432314,149.74,149.73,40.76]
[1749268650891,148.6,149.75,149.73,40.76]
[1749268655186,155.27783917,149.75,149.73,40.76]
[1749268656487,148.6,149.75,149.73,40.76]
[1749268662794,155.27780897,149.75,149.73,40.76]
[1749268663172,167.24964886,149.74,149.72,10.5]
[1749268663401,173.56694886,149.74,149.71,40.74]
[1749268663812,148.6,149.73,149.71,40.74]
[1749268664200,155.27913438,149.72,149.71,40.74]
[1749268665389,155.42129595,149.72,149.71,40.74]
[1749268666881,155.56345752,149.72,149.71,40.74]
[1749268667205,30.60320851,149.72,149.71,40.74]
[1749268667406,25.61310638,149.72,149.71,40.74]
[1749268669016,6.82181118,149.71,149.68,10.5]
[1749268669311,148.6,149.7,149.69,40.74]
[1749268672530,6.68002672,149.7,149.68,10.5]
[1749268672824,6.96434986,149.7,149.69,40.74]
[1749268676409,6.68002672,149.7,149.68,10.5]
[1749268676717,18.64964886,149.69,149.64,10.5]
[1749268677100,18.64964886,149.69,149.65,40.74]
[1749268678228,6.68091929,149.68,149.64,10.5]
[1749268678516,6.68091929,149.68,149.66,40.76]
[1749268680121,0.28432314,149.67,149.66,40.76]
[1749268682126,6.96568881,149.67,149.66,40.76]
[1749268682298,0.28432314,149.67,149.66,40.76]
[1749268685525,6.96568881,149.67,149.66,40.76]
[1749268686641,6.96568881,149.67,149.64,10.5]
[1749268686948,6.96568881,149.67,149.65,40.76]
[1749268687633,148.6,149.66,149.65,40.76]
[1749268687805,6.96568881,149.67,149.65,40.76]
[1749268688010,26.0,149.65,149.6,10.5]
[1749268688205,148.6,149.64,149.6,10.5]
[1749268688537,167.24964886,149.63,149.6,10.5]
[1749268688715,6.68359844,149.62,149.6,51.26]
[1749268689023,148.6,149.61,149.6,51.26]
[1749268690221,148.6,149.61,149.6,10.5]
[1749268690414,148.6,149.61,149.6,51.26]
[1749268693657,0.28432314,149.62,149.6,51.26]
[1749268696921,6.96793549,149.62,149.6,51.26]
[1749268697821,6.96793549,149.62,149.6,10.5]
[1749268698134,8.56013549,149.62,149.59,40.76]
[1749268699825,8.56013549,149.62,149.58,40.76]
[1749268700042,6.68449197,149.6,149.58,40.76]
[1749268702151,18.79181043,149.61,149.56,10.5]
[1749268702152,174.07686679,149.59,149.56,10.5]
[1749268702322,148.74216157,149.58,149.57,40.76]
[1749268702729,148.74216157,149.58,149.56,10.5]
[1749268703226,148.74216157,149.58,149.56,51.26]
[1749268703729,148.74216157,149.58,149.56,10.5]
[1749268704050,148.74216157,149.58,149.56,51.26]
[1749268704756,148.74216157,149.58,149.56,10.5]
[1749268705057,148.74216157,149.58,149.56,51.26]
[1749268705466,148.6,149.57,149.56,51.26]
[1749268705623,148.74216157,149.57,149.56,10.5]
[1749268705826,167.39181043,149.57,149.56,10.5]
[1749268706033,0.14216157,149.56,149.52,10.5]
[1749268706239,0.14216157,149.56,149.53,40.76]
[1749268707631,148.6,149.55,149.52,10.5]
[1749268707830,148.6,149.55,149.53,40.76]
[1749268708159,148.88432314,149.54,149.53,40.76]
[1749268708958,148.88432314,149.54,149.52,10.5]
[1749268709246,148.88432314,149.54,149.53,40.76]
[1749268710444,155.57172829,149.54,149.52,51.26]
[1749268711220,148.6,149.53,149.52,10.5]
[1749268711432,6.68740515,149.54,149.52,51.28]
[1749268711926,18.64964886,149.53,149.47,45.2102169]
[1749268712128,148.6,149.52,149.48,10.52]
[1749268712326,148.6,149.52,149.49,40.78]
[1749268714234,148.6,149.52,149.49,47.46933509]
[1749268716045,150.2078,149.57,149.49,64.19286174]
[1749268716228,148.6,149.57,149.5,6.5014]
[1749268716428,148.6,149.57,149.51,40.78]
[1749268716858,21.2084764,149.58,149.51,40.78]
[1749268717237,21.2084764,149.58,149.52,23.40823969]
[1749268717438,21.2084764,149.58,149.53,51.3]
[1749268718054,21.2084764,149.58,149.54,0.7029]
[1749268718261,46.31574886,149.65,149.54,0.7029]
[1749268718569,0.28432314,149.64,149.56,26.0]
[1749268718764,26.28432314,149.64,149.57,40.78]
[1749268718933,26.28432314,149.64,149.58,10.52]
[1749268719471,0.28432314,149.64,149.58,17.20507239]
[1749268719765,26.28432314,149.64,149.58,17.20507239]
[1749268720339,26.0,149.64,149.58,17.20507239]
[1749268720559,173.25064886,149.67,149.58,17.20507239]
[1749268720737,173.25064886,149.67,149.58,33.91853675]
[1749268721461,148.6,149.67,149.58,33.91853675]
[1749268721854,148.6,149.67,149.6,0.7029]
[1749268722053,148.6,149.67,149.61,40.76]
[1749268722362,20.31574886,149.69,149.61,40.76]
[1749268722363,1.6661,149.69,149.61,40.76]
[1749268722858,26.0,149.68,149.61,40.76]
[1749268723665,26.0,149.68,149.62,6.68359844]
[1749268723962,26.0,149.68,149.63,10.5]
[1749268724264,11.00758717,149.71,149.63,10.5]
[1749268725539,11.00758717,149.71,149.64,6.68270515]
[1749268725759,11.00758717,149.71,149.65,40.76]